Cogmind - Beta 15 @@@ ROGUE MODE // 2025.08.22 @ 21:54:06 Player: shapeshifter Result: Escaped! Performance ------------- Evolutions (9) 4500 Regions Visited (24) 4800 Robots Destroyed (216) 1080 Value Destroyed (12408) 12408 Prototype IDs (39) 780 Alien Tech Used (0) 0 Bonus (10624) 10624 TOTAL SCORE: 34192 Bonus ------- High Alert Combat Kills 2606 Follower Combat Kills 1737 Entered Garrisons 1200 Used RIF Installer 1500 Entered DSFs 500 Aligned with FarCom 300 Win 3000 Friendly Fire -219 Cogmind --------- Core Integrity 1477/1600 Matter 0/300 Energy 147/170 System Corruption 2% Temperature Hot (248) Movement Flying (25) Location To Epsilon Eridani Parts ------- > --- POWER (3) -------- Light Antimatter Reactor > --- PROPULSION (8) --- Xenon Bombardment Thruster Xenon Bombardment Thruster Xenon Bombardment Thruster Xenon Bombardment Thruster Impulse Thruster Impulse Thruster Array Improved Q-thruster > --- UTILITY (10) ----- Power Amplifier Experimental Signal Interpreter Advanced Reaction Control System Improved Core Shielding System Shield Relay Coupler [NC] (36) Relay Coupler [Demolisher] (25) Relay Coupler [Heavy] (16) > --- WEAPON (4) ------- Nova Cannon Ionic Axe > --- INVENTORY (5) ---- Centrium Leg Impulse Thruster Array Force Field Enhanced Nova Cannon Peak State ------------ > --- POWER ------------ Hybrid Fission Core Light Antimatter Reactor Light Quantum Reactor > --- PROPULSION ------- Enhanced Biometal Leg Centrium Leg Centrium Leg Centrium Leg Heavy Shield Leg > --- UTILITY ---------- Advanced Heat Sink Large Storage Unit Experimental Signal Interpreter Experimental ECM Suite Centrium Light Armor Plating Improved Remote Force Field Relay Coupler [Duelist] Relay Coupler [Sentry] > --- WEAPON ----------- Enhanced Nova Cannon Helical Railgun Enhanced Hardcell Cannon Fusion Bomb Launcher > --- INVENTORY -------- Light Quantum Reactor Light Quantum Reactor Biometal Leg Advanced Heat Sink Matter Compressor Advanced Focal Shield Advanced EM Disruption Field Relay Coupler [Hunter] Relay Coupler [Heavy] Enhanced Nova Cannon Enhanced Nova Cannon Enhanced Hardcell Cannon Fusion Bomb Launcher Fusion Bomb Launcher Improved Remote Datajack [Rating: 166] Favorites ----------- Power Hybrid Fission Core Engine Light Deuterium Engine Power Core Hybrid Fission Core Reactor Light Antimatter Reactor Propulsion Flexi-carbon Leg Treads Light Treads Leg Flexi-carbon Leg Wheel Wheel Flight Unit Xenon Bombardment Thruster Utility Large Storage Unit Device Advanced Focal Shield Storage Large Storage Unit Processor Advanced Signal Interpreter Hackware Relay Coupler [Grunt] Protection Improved Light Armor Plating Weapon Shotgun Energy Gun Gamma Rifle Energy Cannon Improved EM Pulse Cannon Ballistic Gun Shotgun Ballistic Cannon Heavy Flak Cannon Launcher Fusion Bomb Launcher Special Weapon Improved Remote Datajack Impact Weapon Powered Hammer Slashing Weapon Ionic Axe Piercing Weapon Kinetic Spear Build | -11 -10 -10 -10 -9 -8 -7 -7 -7 -6 -6 -5 -4 -4 -3 -3 -3 -3 -2 -2 -2 -2 -1 -1 -1 ------- Run | Yrd Mat Min Exi Min Mat Fac Gar Fac Fac Gar Fac Fac Ext Res Gar Res Gar Res Gar Res DSF Acc Gar Acc Slots Evolved 18 | . . . . . 4 2 . . 2 . 2 2 . 2 . . . 2 . . . 2 . . Power 2 | . . . . . . . . . . . 1 1 . . . . . . . . . . . . Propulsion 6 | . . . . . 1 1 . . . . . 1 . 1 . . . . . . . 2 . . Utility 8 | . . . . . 2 . . . 2 . 1 . . 1 . . . 2 . . . . . . Weapon 2 | . . . . . 1 1 . . . . . . . . . . . . . . . . . . Parts Attached 260 | 7 3 4 . 3 3 6 24 10 4 21 15 22 27 4 39 7 15 . 12 2 6 3 13 10 Power 30 | 1 . 2 . . . . 2 2 1 2 1 3 4 1 5 . 2 . 3 . . . 1 . Engine 10 | 1 . 2 . . . . 2 2 . 1 . 2 . . . . . . . . . . . . Core 7 | . . . . . . . . . . 1 1 1 4 . . . . . . . . . . . Reactor 13 | . . . . . . . . . 1 . . . . 1 5 . 2 . 3 . . . 1 . Propulsion 81 | 2 . 1 . 3 1 3 7 4 . 7 1 7 9 . 9 2 1 . 5 1 4 1 9 4 Treads 22 | 2 . 1 . . . 3 6 . . . . . 1 . . . . . 3 . 4 . 2 . Leg 40 | . . . . . . . 1 4 . 7 1 5 8 . 9 2 1 . 2 . . . . . Wheel 7 | . . . . 3 1 . . . . . . 2 . . . . . . . . . 1 . . Hover . | . . . . . . . . . . . . . . . . . . . . . . . . . Flight 12 | . . . . . . . . . . . . . . . . . . . . 1 . . 7 4 Utility 75 | 2 1 1 . . 1 . 4 2 3 6 5 9 8 2 10 3 8 . 1 . 2 1 2 4 Device 31 | 1 . . . . . . 1 . 1 4 4 3 4 1 3 2 3 . 1 . . . . 3 Storage 7 | 1 1 . . . 1 . 1 . . . . 1 . . 1 . . . . . 1 . . . Processor 5 | . . . . . . . . . 2 . . 1 1 . . . 1 . . . . . . . Hackware 22 | . . . . . . . . 2 . 1 1 3 1 . 6 1 3 . . . 1 . 2 1 Protection 10 | . . 1 . . . . 2 . . 1 . 1 2 1 . . 1 . . . . 1 . . Artifact . | . . . . . . . . . . . . . . . . . . . . . . . . . Weapon 74 | 2 2 . . . 1 3 11 2 . 6 8 3 6 1 15 2 4 . 3 1 . 1 1 2 Energy Gun 15 | . . . . . . 1 2 . . 3 1 . 2 1 4 . . . 1 . . . . . Energy Cannon 18 | . . . . . . 1 4 1 . 1 2 . 1 . 2 1 1 . . 1 . 1 1 1 Ballistic Gun 15 | 2 2 . . . 1 1 1 . . . 3 1 1 . 2 . 1 . . . . . . . Ballistic Cannon 6 | . . . . . . . 2 . . 1 . 1 . . 2 . . . . . . . . . Launcher 10 | . . . . . . . 1 . . 1 1 . . . 4 1 . . 2 . . . . . Special Weapon 7 | . . . . . . . . 1 . . 1 1 2 . 1 . 1 . . . . . . . Impact Weapon 1 | . . . . . . . 1 . . . . . . . . . . . . . . . . . Slashing Weapon 1 | . . . . . . . . . . . . . . . . . . . . . . . . 1 Piercing Weapon 1 | . . . . . . . . . . . . . . . . . 1 . . . . . . . Special Melee Weapon . | . . . . . . . . . . . . . . . . . . . . . . . . . Unidentified Prototypes 14 | . . . . . . 1 . . 1 . 1 1 . . . . 8 . . 1 . . . 1 Corrupted Parts 4 | . . . . . . . 1 . . 1 . . 2 . . . . . . . . . . . System Corruption 21 | . . . . . . . 8 . . 3 . . 10 . . . . . . . . . . . Parts Lost 143 | . . . . 2 . 1 19 . . 19 6 14 23 3 10 1 10 . 23 . 3 2 5 2 Power 21 | . . . . . . . 3 . . 1 1 3 4 . 1 . 4 . 4 . . . . . Propulsion 48 | . . . . 2 . . 7 . . 7 1 5 8 . 3 . 1 . 7 . . 2 3 2 Utility 26 | . . . . . . 1 1 . . 1 1 2 5 1 4 . 3 . 5 . 2 . . . Weapon 48 | . . . . . . . 8 . . 10 3 4 6 2 2 1 2 . 7 . 1 . 2 . Highest Loss Streak 17 | . . . . 1 . 1 5 . . 8 4 4 5 3 3 1 5 . 17 . 1 2 5 2 To Critical Strikes 5 | . . . . . . . . . . 2 1 . . . . . 1 . 1 . . . . . Average Backups 18 | 3 8 13 12 12 12 17 23 29 37 33 32 28 11 8 14 14 13 14 11 5 6 10 11 3 Power 1 | . 1 1 1 1 1 2 2 2 2 2 3 1 . . 1 3 2 2 . . . . . . Propulsion 1 | 1 2 3 1 . . . . 1 3 3 1 . 3 . . . . . 1 . 2 4 3 2 Utility 9 | . 2 4 4 4 4 5 10 19 22 23 22 21 5 6 6 4 5 6 6 3 1 . 1 . Weapon 4 | 1 2 5 6 6 5 10 9 5 9 3 . 1 . . 5 6 5 4 2 . 2 6 5 . Tool/Special . | . . . . . . . . . . . . . . . . . . . . . . . . . Unused Backups 70 | . 1 3 2 1 2 1 6 2 6 4 1 14 2 . 11 . . . 3 . 1 . 5 5 Power 5 | . . . . . . . . 1 2 . . 2 . . . . . . . . . . . . Propulsion 10 | . . 3 2 . . . . . . . . . 1 . 1 . . . . . . . . 3 Utility 41 | . . . . 1 1 1 5 1 3 3 1 10 . . 8 . . . 3 . 1 . 3 . Weapon 11 | . 1 . . . 1 . 1 . . 1 . 1 . . 2 . . . . . . . 2 2 Tool/Special 3 | . . . . . . . . . 1 . . 1 1 . . . . . . . . . . . Average Slot Usage (%) 78 | . 99 100 100 98 78 77 64 80 82 78 79 74 73 74 81 94 91 61 54 17 25 31 36 64 Engine 4 | . 14 14 14 14 9 7 5 6 2 . 8 4 . . . . . . . . . . . . Core 2 | . . . . . . . . . . 3 . 6 8 2 3 4 4 4 1 . . . . . Reactor 2 | . . . . . . . . . 3 1 . 3 . 1 8 9 7 . 5 . . . . 4 Treads 8 | . 28 28 28 19 . 17 15 . . . . . . 4 . . . . . . 6 11 10 . Leg 11 | . . . . . . . 1 26 26 24 20 11 21 14 17 22 22 16 12 2 . . . . Wheel 1 | . . . . 7 26 10 . . . . . 2 . . . . . . . . . . . . Device 7 | . 14 7 . . . . 2 . 5 8 15 10 10 14 14 9 14 8 11 4 4 . . 4 Storage 7 | . 14 14 14 14 9 7 7 7 6 6 5 5 5 4 5 7 4 4 3 . 2 4 3 . Processor 2 | . . . . . . . . . 7 4 . 1 5 9 4 4 4 4 4 4 4 4 4 4 Hackware 4 | . . . . . . . . 1 4 3 2 6 5 4 7 14 9 13 6 4 5 4 8 12 Protection 3 | . . 6 14 14 8 3 2 5 . 2 2 . 4 1 . . 2 . 1 . . 4 4 4 Energy Gun 1 | . . . . . . 2 6 . . 3 5 . 1 5 3 . . . . . . . . . Energy Cannon 2 | . . . . . . 2 4 5 . 4 9 3 1 . . 3 3 1 . . . 3 2 5 Ballistic Gun 8 | . 27 28 28 28 26 24 4 . . . 3 10 2 3 . . 3 . . . . . . . Ballistic Cannon 2 | . . . . . . . 4 15 13 5 . 1 . . 1 4 2 . . . . . . . Launcher 1 | . . . . . . . 1 . . . . . . . 7 3 4 4 2 . . . . . Special Weapon 1 | . . . . . . . . 1 4 . . 3 5 3 1 4 1 4 1 . . . . . Impact Weapon 1 | . . . . . . . 3 7 6 5 . . . . . . . . . . . . . . Peak Build Rating 166 | 7 11 15 18 18 48 57 63 82 93 92 111 125 108 104 154 152 166 116 125 38 89 94 106 114 Average Rating 75 | 5 8 12 15 17 46 54 57 77 88 84 100 108 76 88 115 149 150 99 90 29 59 90 90 100 On Entrance 64 | . 7 11 15 18 18 48 54 59 82 89 85 111 83 81 84 149 149 115 88 28 29 81 58 71 Naked Turns . | . . . . . . . . . . . . . . . . . . . . . . . . . Heaviest Build 124 | 13 32 34 34 34 22 26 44 49 40 41 66 82 92 59 123 120 124 60 88 2 42 54 66 40 Greatest Support 240 | 40 40 40 40 40 36 60 80 60 60 80 80 100 105 65 170 178 180 148 115 9 240 80 80 40 Greatest Overweight (x) 4 | . . . . 2 . 2 2 1 . . . 2 1 . 2 . . . 1 . . 3 4 . Average Overweight (x) . | . . . . . . . . . . . . 1 . . . . . . . . . . . . Largest Inventory Capacity 40 | 8 15 15 15 15 40 40 40 40 40 40 40 40 15 15 15 15 15 15 15 5 20 20 20 5 Average Capacity 24 | 7 13 15 15 15 39 40 40 40 40 40 40 36 15 15 15 15 15 15 14 5 13 20 19 5 Most Carried 40 | 6 15 15 15 15 15 23 29 35 40 40 40 36 15 12 15 15 15 15 15 5 17 15 15 5 Average Carried 18 | 4 8 13 13 14 12 17 25 29 37 33 33 29 12 8 14 14 13 14 11 4 8 13 12 4 Final Capacity 40 | 8 15 15 15 15 40 40 40 40 40 40 40 15 15 15 15 15 15 15 5 5 20 20 5 5 Final Carried 40 | 5 15 13 14 15 15 23 24 35 40 30 37 10 15 12 15 12 14 15 5 5 15 14 5 5 Class Distribution -------------------- 28% | Mutant 19% | Hauler-Skirmisher 17% | Bothacker-Tank 10% | Bothacker-Skirmisher 5% | Hauler-Mutant 5% | Bothacker-Mutant 3% | Scavenger-Skirmisher Dominant Class ---------------- Mutant | -10/Materials Mutant | -10/Mines Mutant | -10/Exiles Mutant | -9/Mines Hauler-Skirmisher | -8/Materials Hauler-Skirmisher | -7/Factory Hauler-Skirmisher | -7/Garrison Hauler-Skirmisher | -7/Factory Bothacker-Assassin | -6/Factory Hauler-Mutant | -6/Garrison Bothacker-Skirmisher | -5/Factory Bothacker-Skirmisher | -4/Factory Mutant | -4/Extension Scavenger-Skirmisher | -3/Research Bothacker-Tank | -3/Garrison Bothacker-Tank | -3/Research Bothacker-Tank | -3/Garrison Bothacker-Mutant | -2/Research Mutant | -2/Garrison Mutant | -2/Research Mutant | -2/DSF Mutant | -1/Access Mutant | -1/Garrison Scavenger-Sprinter | -1/Access Resources | -11 -10 -10 -10 -9 -8 -7 -7 -7 -6 -6 -5 -4 -4 -3 -3 -3 -3 -2 -2 -2 -2 -1 -1 -1 ----------- Run | Yrd Mat Min Exi Min Mat Fac Gar Fac Fac Gar Fac Fac Ext Res Gar Res Gar Res Gar Res DSF Acc Gar Acc Matter Collected 7441 | 216 209 174 . 317 65 53 819 893 . 673 234 440 606 . 1293 298 418 . 420 . 112 120 81 . Remotely . | . . . . . . . . . . . . . . . . . . . . . . . . . Salvage Created 7287 | 41 410 158 . 319 99 201 1177 955 20 638 256 501 327 . 687 484 423 . 528 . . 63 . . Parts 304 | 6 24 9 . 20 6 5 47 26 1 15 9 35 9 . 23 14 30 . 20 . . 5 . . Haulers Intercepted 4 | . 1 . . . . 1 . 1 . . . . . . . 1 . . . . . . . . Recyclers Shooed 7 | 1 . . . . . 1 . 1 . . . 3 1 . . . . . . . . . . . Parts Field Recycled . | . . . . . . . . . . . . . . . . . . . . . . . . . Retrieved Matter . | . . . . . . . . . . . . . . . . . . . . . . . . . Parts Self-Destructed . | . . . . . . . . . . . . . . . . . . . . . . . . . Prevented . | . . . . . . . . . . . . . . . . . . . . . . . . . Kills | -11 -10 -10 -10 -9 -8 -7 -7 -7 -6 -6 -5 -4 -4 -3 -3 -3 -3 -2 -2 -2 -2 -1 -1 -1 ------- Run | Yrd Mat Min Exi Min Mat Fac Gar Fac Fac Gar Fac Fac Ext Res Gar Res Gar Res Gar Res DSF Acc Gar Acc Combat Hostiles Destroyed 187 | . 8 8 . 9 4 2 31 15 1 15 6 11 4 . 29 14 13 . 16 . . 1 . . Guns 63 | . 8 8 . 9 4 2 13 . . 4 4 3 2 . 5 . . . 1 . . . . . Cannons 43 | . . . . . . . 8 13 1 9 . 3 2 . . 2 4 . . . . 1 . . AOE 72 | . . . . . . . 6 2 . 1 1 5 . . 24 11 8 . 14 . . . . . Classes Destroyed 19 | 1 5 . . 2 1 1 2 1 . . . 3 . . 2 . 1 . . . . . . . Worker 5 | . . . . 1 . . . 2 . . . 2 . . . . . . . . . . . . Builder 4 | . . . . . . . . . . . . 2 . . . 2 . . . . . . . . Tunneler 3 | 2 . . . . . . . . . . . 1 . . . . . . . . . . . . Hauler 4 | . 1 . . . . 1 . 1 . . . . . . . 1 . . . . . . . . Recycler 8 | . 1 . . 2 . 1 . 4 . . . . . . . . . . . . . . . . Operator 1 | . . . . . . . . . . . . 1 . . . . . . . . . . . . Watcher 3 | . 1 . . . . . . . . . . 1 . . . 1 . . . . . . . . Swarmer 42 | . 3 6 . 7 3 . 7 . . . 2 3 . . 1 8 2 . . . . . . . Cutter 9 | . . . . . . . . . . . . . . . . . 4 . 5 . . . . . Saboteur 8 | . . . . . . . . . . . . . . . 8 . . . . . . . . . Grunt 63 | . 5 2 . 1 . . 9 9 . 12 . 3 2 . 11 5 2 . 2 . . . . . Brawler 6 | . . . . . . . 2 2 . . 1 . . . . . . . 1 . . . . . Duelist 4 | . . . . 1 . . 1 1 . 1 . . . . . . . . . . . . . . Protector 1 | . . . . . . . . 1 . . . . . . . . . . . . . . . . Sentry 18 | . . . . . 1 . 7 1 1 1 1 . 2 . 2 . . . 2 . . . . . Specialist 4 | . . . . . . . . . . . . 2 . . 2 . . . . . . . . . Hunter 12 | . . . . . . 2 3 . . 1 1 . . . 2 1 . . 2 . . . . . Programmer 15 | . . . . . . . 2 1 . . 1 3 . . 1 . 4 . 2 . . 1 . . Behemoth 4 | . . . . . . . . . . . . . . . 2 . 1 . 1 . . . . . Guerrilla 1 | . . . . . . . . . . . . . . . . . . . 1 . . . . . Infiltrator 1 | . . . . . . . . . . . . . . . 1 . . . . . . . . . Best Kill Streak 14 | 1 3 3 . 6 3 3 5 8 1 4 3 4 2 . 14 8 6 . 12 . . 1 . . Combat Bots Only 14 | . 3 3 . 4 3 2 5 3 1 4 3 2 2 . 14 6 6 . 12 . . 1 . . Max Kills in Single Turn 7 | 1 1 2 . 2 1 1 2 3 1 1 1 4 1 . 7 4 4 . 4 . . 1 . . Gunslinging 1 | . . 1 . 1 . . . . . . . . . . . . . . . . . . . . Exploded 7 | . . . . . . . 2 1 . 1 1 2 . . 7 2 4 . 4 . . . . . Melee . | . . . . . . . . . . . . . . . . . . . . . . . . . Uniques/NPCs Destroyed . | . . . . . . . . . . . . . . . . . . . . . . . . . Combat | -11 -10 -10 -10 -9 -8 -7 -7 -7 -6 -6 -5 -4 -4 -3 -3 -3 -3 -2 -2 -2 -2 -1 -1 -1 -------- Run | Yrd Mat Min Exi Min Mat Fac Gar Fac Fac Gar Fac Fac Ext Res Gar Res Gar Res Gar Res DSF Acc Gar Acc Hostile Shots Fired 2164 | . 54 32 . 27 12 22 395 77 18 173 89 119 149 30 219 86 287 6 185 . 47 49 16 72 Missed 712 | . 18 10 . 7 2 4 125 23 10 34 28 30 33 13 68 37 117 2 72 . 13 12 6 48 Hits 1452 | . 36 22 . 20 10 18 270 54 8 139 61 89 116 17 151 49 170 4 113 . 34 37 10 24 Melee 27 | . . . . 6 . . 2 2 . 5 2 . . . . 3 3 . 4 . . . . . Projectile 1425 | . 36 22 . 14 10 18 268 52 8 134 59 89 116 17 151 46 167 4 109 . 34 37 10 24 AOE 7 | . . . . . . . 1 . . . 1 . . . . 1 . . 4 . . . . . Critical Strikes 53 | . . . . 2 . . 2 2 . 7 4 2 5 . 5 5 10 . 7 . 1 1 . . Actively Blocked 2 | . . . . . . . . . . . . . 2 . . . . . . . . . . . Part Disruptions 5 | . . . . . . . . . . . . 5 . . . . . . . . . . . . Damage Taken 25639 | . 371 248 . 320 97 284 3020 771 64 2615 1167 1648 2780 416 1775 796 2763 86 3201 . 1630 871 278 438 Core 3423 | . 59 44 . 66 . 19 330 63 . 316 171 131 480 21 182 53 159 . 491 . 715 90 . 33 Absorbed by Shields 2993 | . . . . . . . . . . . 234 526 51 . 1278 291 524 . 89 . . . . . Redirected to Shielding 245 | . . . . . . . . . . 44 22 . 24 106 . . . . . . . 37 . 12 Ignored by Resistances 770 | . . . . . . . . . . . . . . . 584 125 61 . . . . . . . Regen/Repaired (Parts) 84 | . . . . . . . . . . . . . . . . 84 . . . . . . . . Core Remaining (%) 63 | 100 . . . 32 100 . . 41 . 62 82 . 46 . . . 68 . . . 16 . . 92 Volleys Fired 645 | 5 35 13 . 20 5 9 89 48 4 70 33 52 31 1 83 38 61 3 26 . 1 5 8 5 Largest 4 | 2 2 2 . 2 3 4 3 3 2 3 3 4 3 1 3 2 1 1 1 . 1 1 1 1 Hottest 219 | 40 46 46 . 46 69 144 218 157 88 207 219 179 204 94 175 178 120 120 94 . 7 113 113 113 Shots Fired 1043 | 10 70 26 . 40 15 33 153 95 7 118 57 95 48 1 123 43 61 3 26 . 1 5 8 5 Gun 501 | 10 70 26 . 40 15 32 79 . . 36 32 57 27 1 70 . . . 6 . . . . . Cannon 405 | . . . . . . 1 64 91 6 72 23 34 18 . 12 22 40 3 1 . . 5 8 5 Launcher 91 | . . . . . . . 10 . . 8 . . . . 32 9 16 . 16 . . . . . Special 46 | . . . . . . . . 4 1 2 2 4 3 . 9 12 5 . 3 . 1 . . . Kinetic 505 | 10 70 26 . 40 15 27 68 78 6 38 7 84 16 . 13 6 . . 1 . . . . . Thermal 294 | . . . . . . 5 45 . . 52 40 7 11 1 50 16 40 3 6 . . 5 8 5 Explosive 83 | . . . . . . . 10 . . . . . . . 32 9 16 . 16 . . . . . Electromagnetic 115 | . . . . . . 1 30 13 . 26 8 . 18 . 19 . . . . . . . . . Robot Hit Streak 19 | 5 5 6 . 7 4 6 19 11 7 19 12 6 5 . 11 6 4 . 6 . . 1 . . Robot Miss Streak 13 | 1 4 4 . 3 4 7 7 13 2 6 6 6 5 . 5 3 3 . 2 . 3 1 . . Penetration Max 2 | . . . . . . . . . . . . 1 2 . . . . . . . . . . . Secondary Targets 10 | . 1 3 . 3 1 1 . . . . . . . . 1 . . . . . . . . . Max Gunslinging Chain 1 | . 1 1 . 1 1 1 . . . . . . . . 1 . . . . . . . . . Shots Hit Robots 674 | 8 45 22 . 32 7 22 121 75 5 88 31 44 25 . 76 25 29 . 17 . . 2 . . Core Hits 551 | 4 22 12 . 17 5 15 102 79 6 69 15 27 12 . 72 28 26 . 38 . . 2 . . Critical Kills 4 | . . . . . . . 1 . . . . 1 . . . 1 1 . . . . . . . Critical Parts Destroyed 1 | . . . . . . . . . . . . 1 . . . . . . . . . . . . Critical Strikes 8 | . . . . . . . 1 . . 1 . 2 1 . 1 1 1 . . . . . . . Burn 3 | . . . . . . . . . . 1 . . 1 . 1 . . . . . . . . . Meltdown 3 | . . . . . . . 1 . . . . . . . . 1 1 . . . . . . . Destroy 2 | . . . . . . . . . . . . 2 . . . . . . . . . . . . Melee Attacks 45 | . . . . . . . 4 16 4 21 . . . . . . . . . . . . . . Impact 45 | . . . . . . . 4 16 4 21 . . . . . . . . . . . . . . Slashing . | . . . . . . . . . . . . . . . . . . . . . . . . . Piercing . | . . . . . . . . . . . . . . . . . . . . . . . . . Sneak Attacks . | . . . . . . . . . . . . . . . . . . . . . . . . . Combat Hostiles . | . . . . . . . . . . . . . . . . . . . . . . . . . Follow-up Attacks . | . . . . . . . . . . . . . . . . . . . . . . . . . Damage Inflicted 29689 | 63 465 278 . 410 101 295 3572 1758 151 2014 1212 2989 813 . 7113 2640 3092 . 2630 . . 93 . . Guns 6341 | 63 465 278 . 410 101 295 1315 . . 403 425 871 500 . 1066 . . . 149 . . . . . Cannons 7800 | . . . . . . . 1376 1601 151 1442 327 615 295 . 343 509 1018 . 30 . . 93 . . Explosions 15488 | . . . . . . . 881 157 . 169 460 1503 . . 5704 2131 2045 . 2438 . . . . . Melee . | . . . . . . . . . . . . . . . . . . . . . . . . . Ramming 60 | . . . . . . . . . . . . . 18 . . . 29 . 13 . . . . . Kinetic 7231 | 63 465 278 . 410 101 203 960 1416 151 794 86 1486 364 . 343 81 . . 30 . . . . . Thermal 6774 | . . . . . . 92 1078 157 . 705 1079 940 136 . 899 428 1018 . 149 . . 93 . . Explosive 13729 | . . . . . . . 848 . . . . 563 . . 5704 2131 2045 . 2438 . . . . . Electromagnetic 1895 | . . . . . . . 686 185 . 515 47 . 295 . 167 . . . . . . . . . Impact . | . . . . . . . . . . . . . . . . . . . . . . . . . Slashing . | . . . . . . . . . . . . . . . . . . . . . . . . . Piercing . | . . . . . . . . . . . . . . . . . . . . . . . . . Highest Corruption 28 | . . . . . . . 11 12 . 3 1 18 28 . . . 11 2 5 5 10 1 1 2 Average Corruption 9 | . . . . . . . 7 11 . 3 1 12 18 . . . 10 2 3 5 5 1 1 1 Corruption Purged . | . . . . . . . . . . . . . . . . . . . . . . . . . Corruption Blocked . | . . . . . . . . . . . . . . . . . . . . . . . . . Effects 154 | . . . . . . . 20 37 . . 2 14 53 . . . 11 2 5 1 1 1 4 3 Message Errors 38 | . . . . . . . 7 8 . . 1 2 15 . . . 1 1 1 . . . 2 . Matter Fused 40 | . . . . . . . 6 10 . . . 3 12 . . . 4 . 2 . . . . 3 Heat Flow Errors 19 | . . . . . . . 2 2 . . 1 2 6 . . . 2 . . 1 . 1 2 . Energy Discharges 10 | . . . . . . . . 6 . . . . 4 . . . . . . . . . . . Parts Rejected 8 | . . . . . . . 1 1 . . . 2 . . . . 3 . . . 1 . . . Parts Fused 2 | . . . . . . . . . . . . 1 1 . . . . . . . . . . . Data Loss (minor) 16 | . . . . . . . 1 7 . . . . 7 . . . . 1 . . . . . . Data Loss (major) 7 | . . . . . . . 1 1 . . . 1 2 . . . 1 . 1 . . . . . Misfires 4 | . . . . . . . 1 . . . . 1 2 . . . . . . . . . . . Alerts 2 | . . . . . . . 1 . . . . . . . . . . . 1 . . . . . Misdirections 2 | . . . . . . . . . . . . . 2 . . . . . . . . . . . Weapon Failures 6 | . . . . . . . . 2 . . . 2 2 . . . . . . . . . . . Overload Shots . | . . . . . . . . . . . . . . . . . . . . . . . . . Overflow Damage 818 | . . . . . . . 16 46 . . 84 222 11 . 174 39 152 . 74 . . . . . Projectiles 137 | . . . . . . . . . . . 1 75 11 . . 11 39 . . . . . . . Explosions 681 | . . . . . . . 16 46 . . 83 147 . . 174 28 113 . 74 . . . . . Melee . | . . . . . . . . . . . . . . . . . . . . . . . . . Knockbacks 83 | . . . . . . . 13 29 . 35 . 4 . . . 1 . . 1 . . . . . Impact . | . . . . . . . . . . . . . . . . . . . . . . . . . Kinetic 77 | . . . . . . . 11 27 . 33 . 4 . . . 1 . . 1 . . . . . Secondary 6 | . . . . . . . 2 2 . 2 . . . . . . . . . . . . . . Self-Inflicted Damage 1479 | . . . . . . . . 17 . 12 69 504 . . 239 . 252 . 386 . . . . . Shots 26 | . . . . . . . . 1 . 2 1 7 . . 4 . 3 . 8 . . . . . Rammed 1 | . . . . . . . . . . . . . . . . . . . . . 1 . . . Targets Rammed 12 | . . . . . . . . . . . . . 5 . . . 3 . 3 . 1 . . . Kicked 11 | . . . . . . . . . . . . . 5 . . . 3 . 3 . . . . . Crushed . | . . . . . . . . . . . . . . . . . . . . . . . . . Highest Temperature 584 | . 19 4 . 6 18 254 396 449 10 198 204 229 326 . 584 302 318 . 32 148 . 101 120 254 Average Temperature 110 | . 9 3 . 3 13 124 102 129 6 95 125 80 121 . 159 95 86 . 13 82 . 21 26 168 Received Heat Transfer 5168 | . 117 72 . 18 18 . 831 339 18 1098 82 60 1121 18 256 110 533 27 405 . . . 36 9 Effects 25 | . . . . . . . 3 5 . . . 2 . . 15 . . . . . . . . . Shutdowns 5 | . . . . . . . 1 1 . . . . . . 3 . . . . . . . . . Energy Bleed 3 | . . . . . . . 1 . . . . 2 . . . . . . . . . . . . Interference 7 | . . . . . . . 1 3 . . . . . . 3 . . . . . . . . . Matter Decay 2 | . . . . . . . . . . . . . . . 2 . . . . . . . . . Short Circuit 3 | . . . . . . . . 1 . . . . . . 2 . . . . . . . . . Damage (minor) 1 | . . . . . . . . . . . . . . . 1 . . . . . . . . . Damage (major) 4 | . . . . . . . . . . . . . . . 4 . . . . . . . . . Siege Activations . | . . . . . . . . . . . . . . . . . . . . . . . . . Martial Activations . | . . . . . . . . . . . . . . . . . . . . . . . . . Shielding Activations . | . . . . . . . . . . . . . . . . . . . . . . . . . Robots Disrupted . | . . . . . . . . . . . . . . . . . . . . . . . . . Combat Hostiles . | . . . . . . . . . . . . . . . . . . . . . . . . . Robots Corrupted 4 | . . . . . . . 3 . . 1 . . . . . . . . . . . . . . Combat Hostiles 4 | . . . . . . . 3 . . 1 . . . . . . . . . . . . . . Parts Fried 5 | . . . . . . . 4 . . . . . 1 . . . . . . . . . . . Impact Corruptions . | . . . . . . . . . . . . . . . . . . . . . . . . . Robots Melted 4 | . . . . . . . 1 . . . 1 . . . . 1 1 . . . . . . . Combat Hostiles 4 | . . . . . . . 1 . . . 1 . . . . 1 1 . . . . . . . Parts Melted 24 | . . . . . . . 6 . . 3 4 . . . 6 1 4 . . . . . . . Heat Transferred 8291 | . . . . . . 80 1870 100 . 1395 1268 600 296 . 1258 370 795 . 185 . . 74 . . Parts Sabotaged . | . . . . . . . . . . . . . . . . . . . . . . . . . Parts Stolen . | . . . . . . . . . . . . . . . . . . . . . . . . . Parts Stripped . | . . . . . . . . . . . . . . . . . . . . . . . . . Power Chain Reactions 3 | . . . . . . . 1 2 . . . . . . . . . . . . . . . . Alert | -11 -10 -10 -10 -9 -8 -7 -7 -7 -6 -6 -5 -4 -4 -3 -3 -3 -3 -2 -2 -2 -2 -1 -1 -1 ------- Run | Yrd Mat Min Exi Min Mat Fac Gar Fac Fac Gar Fac Fac Ext Res Gar Res Gar Res Gar Res DSF Acc Gar Acc Maximum Alert Level 4 | . . . . . . . 3 2 1 2 1 2 1 . 4 4 4 3 3 2 2 1 2 1 Low Security (%) 42 | 100 100 100 . 100 100 100 9 . 38 22 21 5 92 100 20 . . . . . . 60 86 4 Level 1 17 | . . . . . . . 10 10 61 36 78 62 7 . 14 . . . 4 . . 39 3 95 Level 2 23 | . . . . . . . 47 89 . 40 . 31 . . 23 . 12 67 68 100 100 . 9 . Level 3 13 | . . . . . . . 33 . . . . . . . 33 52 59 32 26 . . . . . Level 4 3 | . . . . . . . . . . . . . . . 7 47 28 . . . . . . . Level 5 . | . . . . . . . . . . . . . . . . . . . . . . . . . High Security . | . . . . . . . . . . . . . . . . . . . . . . . . . Max Security . | . . . . . . . . . . . . . . . . . . . . . . . . . Peak Influence 1393 | 5 120 108 . 136 106 40 934 590 285 494 370 467 212 22 1393 1266 1315 730 1037 582 447 259 507 312 Initial 928 | . . 19 . . 46 38 . 490 285 113 248 128 211 15 . 783 928 730 469 582 432 259 86 237 Average 357 | . 62 27 . 17 77 12 563 468 216 330 265 336 96 2 585 1076 967 675 615 577 435 182 159 267 Influence Increases 9677 | 10 219 258 . 225 130 66 1124 512 47 551 353 846 681 42 1553 745 746 36 858 5 30 39 421 180 Destroy 0b10 Robot/C 4520 | . 160 200 . 180 80 40 620 280 20 300 120 240 360 20 700 380 260 . 360 . . 20 180 . Destroy 0b10 Robot/NC 165 | 10 15 5 . 15 . 10 . 40 . . . 35 5 5 5 20 . . . . . . . . Destroy Leader 526 | . 44 40 . 30 20 2 40 22 10 20 20 52 42 . 30 54 40 . 30 . . 10 20 . Allied During Kill 361 | . . 13 . . . . . . . . . 2 147 3 24 51 . . 36 . . . 85 . Successful Hack 133 | . . . . . . 14 . 35 . . . 16 28 14 14 . . . 7 5 . . . . Disable Machine 795 | . . . . . . . 30 105 15 60 75 270 30 . 60 . 90 15 15 . . . . 30 Anti-Garrison Action 850 | . . . . . . . 300 . . 100 . . . . 350 . 50 . . . . . 50 . Destroy Structure 1712 | . . . . . . . 104 30 2 26 138 216 24 . 340 240 216 6 350 . . 9 11 . Partial Spotted 45 | . . . . . 30 . . . . . . . . . . . . . . . . . . 15 Lose Combat Pursuer 570 | . . . . . . . 30 . . 45 . 15 45 . 30 . 90 15 60 . 30 . 75 135 Influence Decreases 9380 | 10 168 273 36 105 164 152 190 862 469 239 564 677 1084 71 160 900 685 709 447 465 175 363 132 280 Entered New Map 4179 | . . 32 36 . 74 48 . 444 299 49 226 135 221 14 . 610 310 569 157 455 145 173 22 160 Time Decay 2963 | 10 168 241 . 85 90 104 . 398 170 . 278 362 428 29 . 180 . 140 . 10 . 170 . 100 Lost Part 1347 | . . . . 20 . . 190 . . 190 60 140 179 8 100 10 100 . 230 . 30 20 50 20 Lost Ally 616 | . . . . . . . . 20 . . . 40 256 20 60 100 . . 60 . . . 60 . Purge Threat 275 | . . . . . . . . . . . . . . . . . 275 . . . . . . . Squads Dispatched 27 | . 2 . . . . . . 6 1 . 3 3 4 1 . 5 . . . . 1 . . 1 Investigation 8 | . 1 . . . . . . . . . 1 . 3 . . 3 . . . . . . . . Extermination 7 | . . . . . . . . 1 1 . 2 1 . 1 . . . . . . . . . 1 Reinforcement 5 | . 1 . . . . . . 1 . . . 1 1 . . . . . . . 1 . . . Assault 3 | . . . . . . . . 1 . . . 1 . . . 1 . . . . . . . . Garrison 4 | . . . . . . . . 3 . . . . . . . 1 . . . . . . . . Intercept . | . . . . . . . . . . . . . . . . . . . . . . . . . Searches Triggered . | . . . . . . . . . . . . . . . . . . . . . . . . . Construction Impeded . | . . . . . . . . . . . . . . . . . . . . . . . . . Haulers Reinforced . | . . . . . . . . . . . . . . . . . . . . . . . . . Active Scanning Responses . | . . . . . . . . . . . . . . . . . . . . . . . . . Cargo Convoy Interrupts . | . . . . . . . . . . . . . . . . . . . . . . . . . Stealth | -11 -10 -10 -10 -9 -8 -7 -7 -7 -6 -6 -5 -4 -4 -3 -3 -3 -3 -2 -2 -2 -2 -1 -1 -1 --------- Run | Yrd Mat Min Exi Min Mat Fac Gar Fac Fac Gar Fac Fac Ext Res Gar Res Gar Res Gar Res DSF Acc Gar Acc Distress Signals 11 | . . . . . . . . 1 1 . 1 2 2 1 . . 1 . . . . . . 2 Communications Jammed . | . . . . . . . . . . . . . . . . . . . . . . . . . Distress Signals . | . . . . . . . . . . . . . . . . . . . . . . . . . Times Spotted 327 | . 11 8 . 9 4 4 32 20 1 18 8 18 25 7 33 27 27 1 30 . 6 5 19 14 Peak Tracking Total 15 | . 3 3 . 3 3 2 5 5 2 7 3 5 3 7 5 9 8 1 7 . 4 4 15 10 Tactical Retreats 21 | . . . . . . . 1 . . 2 . 1 3 . 2 . 2 1 2 . 2 . 2 3 Traps | -11 -10 -10 -10 -9 -8 -7 -7 -7 -6 -6 -5 -4 -4 -3 -3 -3 -3 -2 -2 -2 -2 -1 -1 -1 ------- Run | Yrd Mat Min Exi Min Mat Fac Gar Fac Fac Gar Fac Fac Ext Res Gar Res Gar Res Gar Res DSF Acc Gar Acc Traps Triggered 20 | . 1 . . . . . 2 1 . 1 1 . . . 7 . . 2 1 . . 1 2 1 Indirectly . | . . . . . . . . . . . . . . . . . . . . . . . . . Trap Hack Attempts . | . . . . . . . . . . . . . . . . . . . . . . . . . Triggered . | . . . . . . . . . . . . . . . . . . . . . . . . . Disarmed . | . . . . . . . . . . . . . . . . . . . . . . . . . Reprogrammed . | . . . . . . . . . . . . . . . . . . . . . . . . . Reused . | . . . . . . . . . . . . . . . . . . . . . . . . . Traps Extracted . | . . . . . . . . . . . . . . . . . . . . . . . . . Installed . | . . . . . . . . . . . . . . . . . . . . . . . . . Triggered . | . . . . . . . . . . . . . . . . . . . . . . . . . Most Traps Carried 4 | . . . . . . . 4 . . 1 . . . . . . . . . . . . . . Machines | -11 -10 -10 -10 -9 -8 -7 -7 -7 -6 -6 -5 -4 -4 -3 -3 -3 -3 -2 -2 -2 -2 -1 -1 -1 ---------- Run | Yrd Mat Min Exi Min Mat Fac Gar Fac Fac Gar Fac Fac Ext Res Gar Res Gar Res Gar Res DSF Acc Gar Acc Machines Disabled 67 | . . . . . . . 7 7 1 6 5 18 2 . 9 . 7 1 1 . . . 1 2 Max in Single Turn 5 | . . . . . . . 2 4 1 1 4 5 1 . 2 . 2 1 1 . . . 1 1 Garrison Relay 10 | . . . . . . . 3 . . 2 . . . . 3 . 1 . . . . . 1 . Phase Generator 2 | . . . . . . . 1 . . . . . . . 1 . . . . . . . . . Machines Repaired . | . . . . . . . . . . . . . . . . . . . . . . . . . Machines Dismantled 2 | . . . . . . . . . . . . . 2 . . . . . . . . . . . Machines Sabotaged . | . . . . . . . . . . . . . . . . . . . . . . . . . Overloaded Fab Kills . | . . . . . . . . . . . . . . . . . . . . . . . . . Hacking | -11 -10 -10 -10 -9 -8 -7 -7 -7 -6 -6 -5 -4 -4 -3 -3 -3 -3 -2 -2 -2 -2 -1 -1 -1 --------- Run | Yrd Mat Min Exi Min Mat Fac Gar Fac Fac Gar Fac Fac Ext Res Gar Res Gar Res Gar Res DSF Acc Gar Acc Machines Accessed 47 | . . 1 2 . . 2 2 6 1 1 4 4 6 4 1 4 . 2 1 3 . 2 1 . Terminals 28 | . . . . . . 1 2 4 . 1 2 3 6 2 1 1 . . 1 3 . . 1 . Fabricators 2 | . . . . . . . . . . . . 1 . 1 . . . . . . . . . . Repair Stations 2 | . . . . . . . . . . . 1 . . . . 1 . . . . . . . . Recycling Units 6 | . . . . . . . . 2 . . 1 . . . . 1 . 1 . . . 1 . . Scanalyzers . | . . . . . . . . . . . . . . . . . . . . . . . . . Garrison Access 6 | . . . . . . 1 . . 1 . . . . 1 . 1 . 1 . . . 1 . . Total Hacks 72 | . . 1 2 . . 3 4 12 1 1 7 5 9 5 4 6 . 2 1 5 . 2 2 . Successful 29 | . . 1 2 . . 2 . 5 1 . 2 2 5 2 1 2 . 1 1 1 . 1 . . Failed 43 | . . . . . . 1 4 7 . 1 5 3 4 3 3 4 . 1 . 4 . 1 2 . Catastrophic 18 | . . . . . . . . 5 . 1 1 2 2 2 . 1 . 1 . 1 . 1 1 . Database Lockouts . | . . . . . . . . . . . . . . . . . . . . . . . . . Manual 8 | . . . 1 . . 2 . . . . 2 . . . . 2 . . . 1 . . . . Terminals 47 | . . . . . . 2 4 9 . 1 2 3 9 3 4 2 . . 1 5 . . 2 . Fabricators 3 | . . . . . . . . . . . . 2 . 1 . . . . . . . . . . Repair Stations 4 | . . . . . . . . . . . 2 . . . . 2 . . . . . . . . Recycling Units 9 | . . . . . . . . 3 . . 3 . . . . 1 . 1 . . . 1 . . Scanalyzers . | . . . . . . . . . . . . . . . . . . . . . . . . . Garrison Access 6 | . . . . . . 1 . . 1 . . . . 1 . 1 . 1 . . . 1 . . Terminal Hacks 17 | . . 1 2 . . . . 4 . . . 1 5 1 1 . . . 1 1 . . . . Record 1 | . . . 1 . . . . . . . . . . . . . . . . . . . . . Prototype ID Bank 1 | . . . . . . . . 1 . . . . . . . . . . . . . . . . Open Door 7 | . . 1 . . . . . . . . . 1 4 . . . . . 1 . . . . . Open DSF 1 | . . . . . . . . . . . . . . . . . . . . 1 . . . . Branch Access Points 1 | . . . . . . . . 1 . . . . . . . . . . . . . . . . Terminal Index 1 | . . . . . . . . 1 . . . . . . . . . . . . . . . . Alert Level 1 | . . . . . . . . . . . . . 1 . . . . . . . . . . . Zone Layout 2 | . . . . . . . . 1 . . . . . 1 . . . . . . . . . . Garrison Registry 1 | . . . . . . . . . . . . . . . 1 . . . . . . . . . Proto ID Catalog 1 | . . . 1 . . . . . . . . . . . . . . . . . . . . . Fabricator Hacks 1 | . . . . . . . . . . . . 1 . . . . . . . . . . . . Build 1 | . . . . . . . . . . . . 1 . . . . . . . . . . . . Repair Station Hacks . | . . . . . . . . . . . . . . . . . . . . . . . . . Recycling Unit Hacks 3 | . . . . . . . . 1 . . 2 . . . . . . . . . . . . . Report Inventory 2 | . . . . . . . . 1 . . 1 . . . . . . . . . . . . . Retrieve Components 1 | . . . . . . . . . . . 1 . . . . . . . . . . . . . Scanalyzer . | . . . . . . . . . . . . . . . . . . . . . . . . . Garrison Access Hacks 6 | . . . . . . 1 . . 1 . . . . 1 . 1 . 1 . . . 1 . . Unlock Access 6 | . . . . . . 1 . . 1 . . . . 1 . 1 . 1 . . . 1 . . Unauthorized Hacks 2 | . . . . . . 1 . . . . . . . . . 1 . . . . . . . . Terminals 1 | . . . . . . 1 . . . . . . . . . . . . . . . . . . Botnet 1 | . . . . . . 1 . . . . . . . . . . . . . . . . . . Fabricators . | . . . . . . . . . . . . . . . . . . . . . . . . . Repair Stations 1 | . . . . . . . . . . . . . . . . 1 . . . . . . . . Patch 1 | . . . . . . . . . . . . . . . . 1 . . . . . . . . Recycling Units . | . . . . . . . . . . . . . . . . . . . . . . . . . Scanalyzers . | . . . . . . . . . . . . . . . . . . . . . . . . . Garrison Access . | . . . . . . . . . . . . . . . . . . . . . . . . . Data Cores Recovered . | . . . . . . . . . . . . . . . . . . . . . . . . . Used . | . . . . . . . . . . . . . . . . . . . . . . . . . Hacking Detections 37 | . . . . . . 1 2 6 . 1 4 3 4 3 1 4 . 2 . 3 . 2 1 . Full Trace Events 4 | . . . . . . . . . . . 1 . 1 . 1 1 . . . . . . . . Feedback Events . | . . . . . . . . . . . . . . . . . . . . . . . . . Feedback Blocked . | . . . . . . . . . . . . . . . . . . . . . . . . . Robot Schematics Acquired . | . . . . . . . . . . . . . . . . . . . . . . . . . Robots Built . | . . . . . . . . . . . . . . . . . . . . . . . . . Authchips . | . . . . . . . . . . . . . . . . . . . . . . . . . Time 76 | . . . . . . . . . . . . 76 . . . . . . . . . . . . Total Robot Build Rating . | . . . . . . . . . . . . . . . . . . . . . . . . . Part Schematics Acquired . | . . . . . . . . . . . . . . . . . . . . . . . . . Parts Built . | . . . . . . . . . . . . . . . . . . . . . . . . . Authchips . | . . . . . . . . . . . . . . . . . . . . . . . . . Time . | . . . . . . . . . . . . . . . . . . . . . . . . . Total Part Build Rating . | . . . . . . . . . . . . . . . . . . . . . . . . . Parts Repaired . | . . . . . . . . . . . . . . . . . . . . . . . . . Time . | . . . . . . . . . . . . . . . . . . . . . . . . . Parts Recycled . | . . . . . . . . . . . . . . . . . . . . . . . . . Recycled Matter . | . . . . . . . . . . . . . . . . . . . . . . . . . Retrieved Matter . | . . . . . . . . . . . . . . . . . . . . . . . . . Retrieved Components . | . . . . . . . . . . . . . . . . . . . . . . . . . Parts Scanalyzed . | . . . . . . . . . . . . . . . . . . . . . . . . . Part Schematics Acquired . | . . . . . . . . . . . . . . . . . . . . . . . . . Parts Damaged . | . . . . . . . . . . . . . . . . . . . . . . . . . Bothacking | -11 -10 -10 -10 -9 -8 -7 -7 -7 -6 -6 -5 -4 -4 -3 -3 -3 -3 -2 -2 -2 -2 -1 -1 -1 ------------ Run | Yrd Mat Min Exi Min Mat Fac Gar Fac Fac Gar Fac Fac Ext Res Gar Res Gar Res Gar Res DSF Acc Gar Acc Used RIF Installer 3 | . . . . . . . 1 . . . . . . . 1 . . . . . . . 1 . Watcher Feeds 1 | . . . . . . . . . . . . . . . . . . . . . . . 1 . Structural Interface 1 | . . . . . . . . . . . . . . . 1 . . . . . . . . . Robots Hacked 26 | . . . . . . . . 3 . 2 . 3 2 . 6 6 2 . 2 . . . . . Non-combat 2 | . . . . . . . . 1 . . . . . . . . 1 . . . . . . . Combat 24 | . . . . . . . . 2 . 2 . 3 2 . 6 6 1 . 2 . . . . . Robot Hacks Applied 29 | . . . . . . . . 4 . 2 . 3 2 . 7 6 3 . 2 . . . . . parse_system 3 | . . . . . . . . 1 . . . . . . 1 . 1 . . . . . . . map_walls 1 | . . . . . . . . 1 . . . . . . . . . . . . . . . . purge_threat 2 | . . . . . . . . . . . . . . . . . 2 . . . . . . . find_shortcuts 2 | . . . . . . . . . . . . . . . 2 . . . . . . . . . scatter_targeting 1 | . . . . . . . . . . . . . . . 1 . . . . . . . . . spike_heat 1 | . . . . . . . . . . . . . . . . 1 . . . . . . . . amplify_resonance 7 | . . . . . . . . 1 . 2 . 1 . . 1 2 . . . . . . . . streamctrl_high 1 | . . . . . . . . . . . . . 1 . . . . . . . . . . . formatsys_high 11 | . . . . . . . . 1 . . . 2 1 . 2 3 . . 2 . . . . . Relay Couplers Released 43 | . . . . . . . 16 . . 7 . . . . 12 . 3 . . . . . 5 . Machine Destruction 39 | . . . . . . . 12 . . 7 . . . . 12 . 3 . . . . . 5 . Programmers 4 | . . . . . . . 4 . . . . . . . . . . . . . . . . . Attached 21 | . . . . . . . . 2 . 1 1 3 1 . 6 1 3 . . . 1 . 2 . Fabnet Peak Effective % . | . . . . . . . . . . . . . . . . . . . . . . . . . Robots Rewired 14 | . . . . . . . . . . . . . 9 . 2 . . . . . . . 3 . Allies Hacked 2 | . . . . . . . . . . . . . . . . . . . 2 . . . . . Hacks Repelled . | . . . . . . . . . . . . . . . . . . . . . . . . . Allies | -11 -10 -10 -10 -9 -8 -7 -7 -7 -6 -6 -5 -4 -4 -3 -3 -3 -3 -2 -2 -2 -2 -1 -1 -1 -------- Run | Yrd Mat Min Exi Min Mat Fac Gar Fac Fac Gar Fac Fac Ext Res Gar Res Gar Res Gar Res DSF Acc Gar Acc Total Allies 40 | . . 2 . . . . . 1 . . . 2 19 . 6 3 . . 4 . . . 3 . Largest Group 9 | . . 2 2 . . . . 1 . . . 1 9 2 3 2 . . 3 . . . 3 . Highest-Rated Group 402 | . . 42 42 . . . . 29 . . . 56 402 92 211 136 . . 144 . . . 207 . Highest-Rated Ally 159 | . . 31 31 . . . . 29 . . . 56 159 46 95 68 . . 64 . . . 69 . Total Orders 1 | . . . . . . . . . . . . . 1 . . . . . . . . . . . FOLLOW 1 | . . . . . . . . . . . . . 1 . . . . . . . . . . . Ally Attacks 233 | . . 8 . . . . . 4 . . . 5 108 7 36 12 . . 22 . . . 31 . Total Damage 8736 | . . 126 . . . . . 39 . . . 161 3590 110 1757 738 . . 508 . . . 1707 . Kills 43 | . . 3 . . . . . . . . . 1 15 2 6 5 . . 2 . . . 9 . Allies Corrupted 1 | . . . . . . . . . . . . 1 . . . . . . . . . . . . Allies Melted 1 | . . . . . . . . . . . . . . . . . . . 1 . . . . . Intel | -11 -10 -10 -10 -9 -8 -7 -7 -7 -6 -6 -5 -4 -4 -3 -3 -3 -3 -2 -2 -2 -2 -1 -1 -1 ------- Run | Yrd Mat Min Exi Min Mat Fac Gar Fac Fac Gar Fac Fac Ext Res Gar Res Gar Res Gar Res DSF Acc Gar Acc Active Infowar (turns) 3712 | 41 401 723 . . . . . . 324 20 . 189 1120 361 352 . 1 . 180 . . . . . Optics 1762 | . . . . . . . . . . . . 189 1120 361 92 . . . . . . . . . Terrain 344 | . . . . . . . . . 324 20 . . . . . . . . . . . . . . Seismic 1165 | 41 401 723 . . . . . . . . . . . . . . . . . . . . . . Cloaking 362 | . . . . . . . . . . . . . 362 . . . . . . . . . . . ECM 541 | . . . . . . . . . . . . 30 1 69 260 . 1 . 180 . . . . . Robot Analysis Total . | . . . . . . . . . . . . . . . . . . . . . . . . . Derelict Logs Recovered 2 | . . 2 . . . . . . . . . . . . . . . . . . . . . . Drone Launches . | . . . . . . . . . . . . . . . . . . . . . . . . . Drone Recoveries . | . . . . . . . . . . . . . . . . . . . . . . . . . Exploration | -11 -10 -10 -10 -9 -8 -7 -7 -7 -6 -6 -5 -4 -4 -3 -3 -3 -3 -2 -2 -2 -2 -1 -1 -1 ------------- Run | Yrd Mat Min Exi Min Mat Fac Gar Fac Fac Gar Fac Fac Ext Res Gar Res Gar Res Gar Res DSF Acc Gar Acc Turns Passed 14697 | 141 401 1311 500 672 198 306 1564 952 356 887 613 823 1120 361 1735 363 678 294 367 36 129 358 331 201 Spaces Moved 8620 | 81 133 760 312 432 175 188 617 489 222 490 386 450 560 266 711 221 385 247 273 76 125 182 185 654 Core 101 | 18 . . . . . . . . . . . . . . . . . . 71 12 . . . . Treads 2488 | 63 133 760 312 215 . 109 513 37 . . . . . . . . . . 10 . 45 153 138 . Legs 4463 | . . . . . . . 104 452 222 490 386 227 560 266 711 221 385 247 192 . . . . . Wheels 730 | . . . . 217 175 79 . . . . . 223 . . . . . . . . . 29 7 . Hover . | . . . . . . . . . . . . . . . . . . . . . . . . . Flight 838 | . . . . . . . . . . . . . . . . . . . . 64 80 . 40 654 Fastest Speed 22 | 50 160 160 160 95 86 95 120 130 130 113 122 112 112 126 124 122 114 114 50 40 40 145 22 25 Average Speed 130 | 135 160 160 160 139 86 135 194 138 130 121 123 128 115 126 177 123 117 115 102 41 83 157 130 25 Slowest Speed 320 | 160 160 160 160 160 86 165 320 240 130 130 125 260 190 126 260 125 122 116 240 50 160 160 160 25 Overloaded Moves . | . . . . . . . . . . . . . . . . . . . . . . . . . Propulsion Burnouts . | . . . . . . . . . . . . . . . . . . . . . . . . . Robots Hopped 6 | . . . . . . . . . . . . . . . . . . . . . 1 . 1 4 Potential Cave-ins 5 | . . . . . . . . . . . . . . . . . . . . . . . 5 . Cave-ins Triggered . | . . . . . . . . . . . . . . . . . . . . . . . . . Exploration Rate (%) 34 | 5 28 99 69 75 22 3 74 14 7 49 13 11 73 8 68 11 37 7 37 3 95 5 27 23 Regions Visited 24 Branch Regions 4 Pre-discovered Areas 1 | . . . 1 . . . . . . . . . . . . . . . . . . . . . Known Exits Taken 9 | . . . . . 1 1 . . 1 . . . 1 1 . 1 . 1 . 1 . 1 . . Unknown Exits Taken 8 | 1 1 1 1 1 . . . 1 . . 1 1 . . . . . . . . . . . . Scrap Searched 2 | . . 1 . 1 . . . . . . . . . . . . . . . . . . . . Spaces Dug 80 | . . . . . . . . 12 2 6 3 2 . . . 11 33 2 . . . 2 7 . Terrain Destroyed 1288 | . . . . . . . 123 32 2 6 75 149 9 . 315 173 226 2 166 . . 3 7 . Melee 20 | . . . . . . . . 12 2 6 . . . . . . . . . . . . . . Projectile 79 | . . . . . . . . . . . 10 24 9 . 3 6 14 2 1 . . 3 7 . AOE 1189 | . . . . . . . 123 20 . . 65 125 . . 312 167 212 . 165 . . . . . Terrain Rammed . | . . . . . . . . . . . . . . . . . . . . . . . . . Walls Destroyed . | . . . . . . . . . . . . . . . . . . . . . . . . . Machines Disabled . | . . . . . . . . . . . . . . . . . . . . . . . . . Actions | -11 -10 -10 -10 -9 -8 -7 -7 -7 -6 -6 -5 -4 -4 -3 -3 -3 -3 -2 -2 -2 -2 -1 -1 -1 --------- Run | Yrd Mat Min Exi Min Mat Fac Gar Fac Fac Gar Fac Fac Ext Res Gar Res Gar Res Gar Res DSF Acc Gar Acc Total 11050 | 104 262 831 314 462 212 219 832 647 278 635 468 608 967 290 1078 274 551 253 339 80 150 248 267 681 Wait 831 | . 74 45 . 1 20 . 42 60 19 2 8 44 224 8 128 1 61 . 3 . . 56 29 6 Move 8587 | 80 132 759 311 431 174 187 616 488 222 488 385 449 559 266 710 221 384 247 272 75 122 182 182 645 Hop 6 | . . . . . . . . . . . . . . . . . . . . . 1 . 1 4 Pick Up 332 | 12 14 3 1 4 7 13 37 21 16 21 21 25 21 10 41 3 16 2 10 . 15 2 12 5 Fast Attach 26 | . . 1 . 1 . . . . . . . 1 4 . 6 . 2 . . 2 . . 3 6 Attach 212 | 7 2 . . 2 4 3 22 6 3 24 13 22 22 3 20 3 12 . 18 . 7 3 12 4 Detach 22 | . . . . . 1 1 3 . 2 . 1 3 . 1 1 . . . 1 1 1 . 4 2 Swap 78 | . 1 3 . 1 . 3 9 6 2 2 4 6 3 1 23 6 8 . . . . . . . Drop 114 | . 4 7 2 2 1 3 10 2 6 7 3 6 8 . 29 2 4 1 3 2 2 . 6 4 Fire 645 | 5 35 13 . 20 5 9 89 48 4 70 33 52 31 1 83 38 61 3 26 . 1 5 8 5 Melee 45 | . . . . . . . 4 16 4 21 . . . . . . . . . . . . . . Ram . | . . . . . . . . . . . . . . . . . . . . . . . . . Kick 11 | . . . . . . . . . . . . . 5 . . . 3 . 3 . . . . . Crush 1 | . . . . . . . . . . . . . . . . . . . . . 1 . . . Escape Stasis 28 | . . . . . . . . . . . . . . . 25 . . . 3 . . . . . Rewire 94 | . . . . . . . . . . . . . 72 . 12 . . . . . . . 10 . Trap . | . . . . . . . . . . . . . . . . . . . . . . . . . Miscellaneous 18 | . . . . . . . . . . . . . 18 . . . . . . . . . . . Route ------- -11/Scrapyard -10/Materials -10/Mines (discovered 3 exits: [*Mat x2] / *Exi) -10/Exiles -9/Mines -8/Materials (discovered 2 exits: *Fac x2) -7/Factory -7/Garrison (discovered 2 exits: *Fac x2) -7/Factory (discovered 3 exits: *Fac / Low x2) -6/Factory (discovered 2 exits: *Low / Gar) -6/Garrison -5/Factory -4/Factory (discovered 2 exits: *Res / *Ext) -4/Extension (discovered 2 exits: *Res / [*Cet]) -3/Research -3/Garrison (discovered 3 exits: *Res x3) -3/Research -3/Garrison -2/Research -2/Garrison -2/Research -2/DSF -1/Access -1/Garrison -1/Access To Epsilon Eridani History --------- Turn | Location | Event 7 | -11/Scrapyard | Discovered new exit (range 15) 142 | -11/Scrapyard | Entered Materials 300 | -10/Materials | Build established: Mutant 511 | -10/Materials | Discovered new exit (range 16) 543 | -10/Materials | Entered Mines 626 | -10/Mines | Learned 4 Materials zone layouts 631 | -10/Mines | Found a hidden stash of uninstalled traps 1055 | -10/Mines | Received a Rocket Launcher from a helpful Derelict 1089 | -10/Mines | Learned Materials garrison access intel 1195 | -10/Mines | Discovered new exit (range 7) 1261 | -10/Mines | Met a Derelict who couldn't figure out how to use a Trap Extractor 1481 | -10/Mines | Discovered new exit (range 9) 1847 | -10/Mines | Deemed a non-threat by the Exiles lab entrance 1847 | -10/Mines | Discovered new exit (range 5) 1854 | -10/Mines | Entered Exiles 1854 | -10/Exiles | Accompanied by 2 allies 1884 | -10/Exiles | Led the pair of lost Derelicts to a safe place 1894 | -10/Exiles | Met 8R-AWN 1922 | -10/Exiles | Met EX-HEX 1997 | -10/Exiles | Met EX-DEC 2026 | -10/Exiles | Learned location of Zion (-6) 2131 | -10/Exiles | Met EX-BIN 2154 | -10/Exiles | Aligned with FarCom system 2155 | -10/Exiles | Given EX-Vault access code 2192 | -10/Exiles | Opened EX-Vault 2201 | -10/Exiles | Found Lightpack 2.0 2236 | -10/Exiles | Warned to stay clear of 0b10 Research branches 2333 | -10/Exiles | Discovered new exit (range 14) 2354 | -10/Exiles | Left Exiles lab with Lightpack 2.0 2354 | -10/Exiles | Entered Mines 2713 | -9/Mines | Core integrity fell below 50% 2968 | -9/Mines | A weapon hastily lodged in a ceiling crevice suddenly fell to the ground 3020 | -9/Mines | Discovered new exit (range 6) 3026 | -9/Mines | Entered Materials 3026 | -8/Materials | Evolved 4 slots: Propulsion x1, Utility x2, Weapon x1 3027 | -8/Materials | Identified exit to Factory 3028 | -8/Materials | Loaded intel: 1 garrison access location 3169 | -8/Materials | Discovered exit to Factory (range 16) 3224 | -8/Materials | Entered Factory 3224 | -7/Factory | Evolved 2 slots: Propulsion x1, Weapon x1 3336 | -7/Factory | Build established: Hauler-Skirmisher 3336 | -7/Factory | Identified exit to Garrison 3530 | -7/Factory | Entered Garrison 3560 | -7/Garrison | Triggered checkpoint 3681 | -7/Garrison | Phase Generator disabled 3762 | -7/Garrison | Triggered checkpoint 3771 | -7/Garrison | Triggered checkpoint 3862 | -7/Garrison | Lost 3 parts (1p1n1w) 3935 | -7/Garrison | Lost 3 parts (2n1w) 4023 | -7/Garrison | Discovered new exit (range 8) 4114 | -7/Garrison | Triggered checkpoint 4241 | -7/Garrison | Garrison Relay disabled 4386 | -7/Garrison | Triggered checkpoint 4506 | -7/Garrison | Triggered checkpoint 4563 | -7/Garrison | Lost 5 parts (3n1u1w) 4715 | -7/Garrison | Discovered new exit (range 11) 4789 | -7/Garrison | System corruption reached 10% 4894 | -7/Garrison | Triggered checkpoint 4956 | -7/Garrison | Installed Relay Interface Framework 4985 | -7/Garrison | Garrison Relay disabled 5094 | -7/Garrison | Entered Factory 5418 | -7/Factory | Core integrity fell below 50% 5494 | -7/Factory | First assault squad dispatched 5515 | -7/Factory | Identified exit to Lower Caves 5565 | -7/Factory | Garrison activated, responded to threat 5994 | -7/Factory | Discovered new exit (range 5) 6046 | -7/Factory | Entered another Factory area 6046 | -6/Factory | Evolved 2 slots: Utility x2 6288 | -6/Factory | Discovered new exit (range 15) 6311 | -6/Factory | Identified exit to Lower Caves 6379 | -6/Factory | Build established: Bothacker-Assassin 6402 | -6/Factory | Identified exit to Garrison 6402 | -6/Factory | Entered Garrison 6428 | -6/Garrison | Triggered checkpoint 6448 | -6/Garrison | Triggered checkpoint 6485 | -6/Garrison | Lost 3 parts (3w) 6494 | -6/Garrison | Garrison Relay disabled 6669 | -6/Garrison | Lost 5 parts (3n2w) 6757 | -6/Garrison | Build established: Hauler-Skirmisher 6822 | -6/Garrison | Triggered checkpoint 6861 | -6/Garrison | Garrison Relay disabled 6900 | -6/Garrison | Triggered checkpoint 6999 | -6/Garrison | Discovered new exit (range 11) 7080 | -6/Garrison | Triggered checkpoint 7113 | -6/Garrison | Build established: Hauler-Mutant 7144 | -6/Garrison | Triggered checkpoint 7212 | -6/Garrison | Lost 8 parts (1p3n1u3w) 7289 | -6/Garrison | Entered Factory 7289 | -5/Factory | Evolved 2 slots: Power x1, Utility x1 7564 | -5/Factory | Found Prototype Launcher 7565 | -5/Factory | Identified Tesla Bomb Launcher 7640 | -5/Factory | Lost 4 parts (1p1n1u1w) 7886 | -5/Factory | Discovered new exit (range 14) 7902 | -5/Factory | Entered another Factory area 7902 | -4/Factory | Evolved 2 slots: Power x1, Propulsion x1 8138 | -4/Factory | Build established: Bothacker-Skirmisher 8144 | -4/Factory | Lost 4 parts (4n) 8478 | -4/Factory | System corruption reached 10% 8480 | -4/Factory | Lost 4 parts (1p3w) 8580 | -4/Factory | Discovered new exit (range 22) 8652 | -4/Factory | First assault squad dispatched 8666 | -4/Factory | Lost 4 parts (1p2u1w) 8716 | -4/Factory | Discovered new exit (range 10) 8725 | -4/Factory | Entered Extension 9058 | -4/Extension | Rescued a captive Derelict 9058 | -4/Extension | Rescued a captive Derelict 9247 | -4/Extension | P-70 Sage assimilated allied 13-1AQ(h) 9327 | -4/Extension | Lost 8 allies 9395 | -4/Extension | Spotted B-86 Titan 9424 | -4/Extension | Lost 5 parts (2n1u2w) 9433 | -4/Extension | Hijacked Titan 7a control node with streamctrl_high 9503 | -4/Extension | Spotted B-86 Titan 9505 | -4/Extension | Rescued a captive Derelict 9521 | -4/Extension | Lost 4 parts (2p1n1u) 9555 | -4/Extension | Rescued a captive Derelict 9587 | -4/Extension | Lost 5 parts (3n1u1w) 9592 | -4/Extension | Rescued a captive Derelict 9715 | -4/Extension | Rescued A7 9716 | -4/Extension | Core integrity fell below 50% 9740 | -4/Extension | Lost 5 parts (1p2n1u1w) 9769 | -4/Extension | Rescued a captive Derelict 9770 | -4/Extension | Rescued a captive Derelict 9813 | -4/Extension | Discovered new exit (range 10) 9814 | -4/Extension | Discovered new exit (range 6) 9842 | -4/Extension | Identified exit to Research 9845 | -4/Extension | Entered Research 9845 | -3/Research | Accompanied by 3 allies (A7) 9845 | -3/Research | Evolved 2 slots: Propulsion x1, Utility x1 10122 | -3/Research | Build established: Scavenger-Skirmisher 10206 | -3/Research | Identified exit to Garrison 10206 | -3/Research | Entered Garrison 10225 | -3/Garrison | Lost 3 parts (1u2w) 10244 | -3/Garrison | Triggered checkpoint 10259 | -3/Garrison | Garrison Relay disabled 10458 | -3/Garrison | Spotted B-86 Titan 10474 | -3/Garrison | Triggered checkpoint 10499 | -3/Garrison | Lost 3 parts (1p1n1u) 10504 | -3/Garrison | Found Fusion Bomb Launcher 10507 | -3/Garrison | Found Fusion Bomb Launcher 10512 | -3/Garrison | Found Fusion Bomb Launcher 10518 | -3/Garrison | Found Fusion Bomb Launcher 10521 | -3/Garrison | Found Fusion Bomb Launcher 10526 | -3/Garrison | Found Fusion Bomb Launcher 10558 | -3/Garrison | Triggered checkpoint 10565 | -3/Garrison | Triggered checkpoint 10565 | -3/Garrison | Destroyed B-86 Titan 10617 | -3/Garrison | Lost 3 parts (1n1u1w) 10663 | -3/Garrison | Found embedded Infiltrators 10707 | -3/Garrison | Discovered new exit (range 9) 10743 | -3/Garrison | Build established: Bothacker-Tank 10802 | -3/Garrison | Triggered checkpoint 10915 | -3/Garrison | Phase Generator disabled 10942 | -3/Garrison | Garrison Relay disabled 11104 | -3/Garrison | Identified exit to Research 11203 | -3/Garrison | Triggered checkpoint 11327 | -3/Garrison | Discovered exit to Research (range 16) 11385 | -3/Garrison | Expanded RIF knowledge: Structural Interface 11531 | -3/Garrison | Spotted B-86 Titan 11596 | -3/Garrison | Destroyed B-86 Titan 11604 | -3/Garrison | Lost 3 allies 11843 | -3/Garrison | Destroyed 14 combat bots 11886 | -3/Garrison | Discovered exit to Research (range 81) 11886 | -3/Garrison | Discovered exit to Research (range 26) 11886 | -3/Garrison | Discovered exit to Research (range 70) 11891 | -3/Garrison | Garrison Relay disabled 11941 | -3/Garrison | Entered Research 11941 | -3/Research | Accompanied by 2 allies 12191 | -3/Research | First assault squad dispatched 12219 | -3/Research | Garrison activated, responded to threat 12278 | -3/Research | Lost 3 allies 12304 | -3/Research | Identified exit to Garrison 12304 | -3/Research | Entered Garrison 12375 | -3/Garrison | Found Prototype Processor 12376 | -3/Garrison | Identified Exp. Signal Interpreter 12412 | -3/Garrison | Found Prototype Device 12423 | -3/Garrison | QS Assembler disabled 12484 | -3/Garrison | Triggered checkpoint 12537 | -3/Garrison | Garrison Relay disabled 12545 | -3/Garrison | Identified Exp. ECM Suite 12630 | -3/Garrison | Spotted B-86 Titan 12632 | -3/Garrison | Triggered checkpoint 12634 | -3/Garrison | Triggered checkpoint 12682 | -3/Garrison | Destroyed B-86 Titan 12727 | -3/Garrison | System corruption reached 10% 12757 | -3/Garrison | Lost 5 parts (1p1n2u1w) 12841 | -3/Garrison | Triggered checkpoint 12963 | -3/Garrison | Discovered new exit (range 8) 12970 | -3/Garrison | Identified exit to Research 12982 | -3/Garrison | Entered Research 12982 | -2/Research | Evolved 2 slots: Utility x2 13276 | -2/Research | Identified exit to Garrison 13276 | -2/Research | Entered Garrison 13338 | -2/Garrison | Triggered checkpoint 13402 | -2/Garrison | Rescued a captive Derelict 13403 | -2/Garrison | Rescued a captive Derelict 13444 | -2/Garrison | Lost 6 parts (1p1n1u3w) 13543 | -2/Garrison | Spotted B-90 Cyclops 13546 | -2/Garrison | Triggered checkpoint 13548 | -2/Garrison | Destroyed B-90 Cyclops 13556 | -2/Garrison | Triggered checkpoint 13561 | -2/Garrison | Triggered checkpoint 13600 | -2/Garrison | Triggered checkpoint 13621 | -2/Garrison | Destroyed 12 combat bots 13635 | -2/Garrison | Discovered new exit (range 11) 13641 | -2/Garrison | Lost 17 parts (3p6n4u4w) 13641 | -2/Garrison | Identified exit to Research 13643 | -2/Garrison | Entered Research 13679 | -2/Research | Identified exit to DSF 13679 | -2/Research | Entered DSF 13706 | -2/DSF | Additional patrols routed to DSF 13707 | -2/DSF | Core integrity fell below 50% 13753 | -2/DSF | Discovered new exit (range 15) 13804 | -2/DSF | Core integrity fell below 20% 13806 | -2/DSF | System corruption reached 10% 13807 | -2/DSF | Identified exit to Access 13808 | -2/DSF | Entered Access 13808 | -1/Access | Evolved 2 slots: Propulsion x2 13849 | -1/Access | Build established: Mutant 14166 | -1/Access | Identified exit to Garrison 14166 | -1/Access | Entered Garrison 14195 | -1/Garrison | Expanded RIF knowledge: Watcher Feeds 14258 | -1/Garrison | Triggered checkpoint 14278 | -1/Garrison | Garrison Relay disabled 14464 | -1/Garrison | Spotted B-99 Colossus 14495 | -1/Garrison | Discovered new exit (range 6) 14496 | -1/Garrison | Identified exit to Access 14497 | -1/Garrison | Entered Access 14520 | -1/Access | Lost 3 allies 14527 | -1/Access | Lost 5 parts (3n2w) 14659 | -1/Access | Spotted B-99 Colossus 14659 | -1/Access | Spotted B-99 Colossus 14695 | -1/Access | Discovered new exit (range 5) 14698 | -1/Access | Identified exit to Surface 14698 | *** | Escaped! Last Messages --------------- 14683_ Penetrated by Slug. 14683_ Slug penetrates Sealed Heavy Doors. 14683_ Knocked back. 14683_ Slug penetrates Sealed Heavy Doors. 14683_ Slug penetrates Reinforced Barrier. 14683_ Slug penetrates Wall. 14683_ Slug penetrates Sealed Heavy Doors. 14684_ Sealed Heavy Doors breached. 14690_ Penetrated by Slug. 14690_ Slug penetrates Wall. 14692_ Penetrated by Slug. 14694_ Slug penetrates Reinforced Barrier. 14694_ Penetrated by Slug. 14694_ Slug penetrates Sealed Heavy Doors. 14694_ Penetrated by Slug. 14694_ Slug penetrates Sealed Heavy Doors. 14695_ Main Access Shell breached. 14695_ EXIT=FOUND 14698_ EXIT=IDENTIFIED: SURFACE [Achievement: One Last FU] Map ----- +----------------------------------------------------+ | ?????????????????????????????????????????????????? | | ?????????????????????????????????????????????????? | | ?????????????????????????????????????????????????? | | ?????????????????????????????????????????????????? | | ?????????????????????????????????????????????????? | | ?????????????????????????????????????????????????? | | ?????????????????????????????????????????????????? | | ?????????????????????????????????????????????????? | | ?????????????????????????????????????????????????? | | ?????????????????????????????????????????######### | | ?????????????????????????????????????????# | | ?????????????????????????????????????????# | | ?????????????????????????????????????????# | | ????????????g????????????????????????????# | | ?????????????????????????????????????????# !* | | ????????????g????????????????????????????# * | | ?????????????????????????????????????????# | | ?????????????????????????????????????????# | | ?????????????????????????????????????????# | | ????????????????????????????###??######### | | ???????????????????????????? "??" # | | ???????????????????????????? "??" # | | ???????????????????????"""""" "??" #"#"##""# | | ???????????????????????" " "??" | | ???????????????????????" "" " "??" BB | | ???????????????????????" @" " "??" BB | | ???????????????????????" "??" % % | | ????????????????????" """""" """" """/"#### | | ????????????????????" " | | ????????????????????" """" " | | ????????????????????"##########??######### | | ?????????????????????????????????????????# | | ?????????????????????????????????????????# """"" | | ?????????????????????????????????????????# """"" | | ?????????????????????????????????????????# """"" | | ?????????????????????????????????????????# """"" | | ?????????????????????????????????????????# """"" | | ?????????????????????????????????????????# """"" | | ?????????????????????????????????????????# | | ?????????????????????????????????????????# ! | | ?????????????????????????????????????????######### | | ?????????????????????????????????????????????????? | | ?????????????????????????????????????????????????? | | ?????????????????????????????????????????????????? | | ?????????????????????????????????????????????????? | | ?????????????????????????????????????????????????? | | ?????????????????????????????????????????????????? | | ?????????????????????????????????????????????????? | | ?????????????????????????????????????????????????? | | ?????????????????????????????????????????????????? | +----------------------------------------------------+ Best States ------------- Heat Dissipation 84 Coolant Potential 80 Energy Generation 69 Energy Capacity 1750 Matter Stores 510 Matter Capacity 550 Sight Range 22 Terrain Scan Range 16 Terrain Scan Density 110 ECM Strength 3 Cloak Strength 3 Power Amplification 60 Armor Coverage 225 Resistance: KI 30 Resistance: EM 15 Core Shielding 30 Propulsion Shielding 66 Evasion (%) 77 Recoil Reduction 6 Defensive Hacking 10 Relay Coupler Types 3 Relay Coupler Value 97 Item Schematics ----------------- None Robot Schematics ------------------ None Fabricated ------------ Nothing Repaired ---------- Nothing Alien Tech Used ----------------- None Achievements -------------- One Last FU Challenges ------------ None Game ------ Seed SigixRocketProcessor Manual? 0 Play Time 02:49:44 Cumulative 184.7 hours Start 2025.08.22 @ 02:08:49 End 2025.08.22 @ 21:54:06 Sessions 10 Manual Loads 0 Difficulty Rogue Special Mode None Game No. 288 Rogue 288 Adventurer 0 Explorer 0 Win Type 0 Total 4 Types 3/0/1/0/0/0/0/0/0/0 Lore% 79 Gallery% 74 Achievement% 55 Wizard Run 0 Options --------- Layout 1 ASCII 0 Keyboard 0 Movement Mouse Keybinds 0 Fullscreen 1 Font 24/Smallcaps Map View 50x40 Zoom Use 0% Tactical HUD 1 Map Filters NONE Filters NONE Steam 1 RUN: b526b7b2-6d30-4f9f-b098-7ef7f758f099